fUST/lending_fUST_20250215
["ID","MTS","AMOUNT","RATE_DAILY","PERIOD"]
[353092778,1739551839370,-500.0,0.00013698,2]
[353092779,1739551839381,-500.0,0.00013698,2]
[353092780,1739551839391,-500.0,0.00013698,2]
[353092781,1739551839406,-500.0,0.00013698,2]
[353092782,1739551839415,-500.0,0.00013698,2]
[353092783,1739551839424,-438.19380035,0.00013698,2]
[353092784,1739551839435,-500.0,0.00013698,2]
[353092785,1739551839446,-557.75,0.00013698,2]
[353092786,1739551839455,-500.0,0.00013698,2]
[353092787,1739551839464,-500.0,0.00013698,2]
[353092788,1739551839474,-500.0,0.00013698,2]
[353092789,1739551839485,-500.0,0.00013698,2]
[353092790,1739551839494,-500.0,0.00013698,2]
[353092791,1739551839620,-500.0,0.00013698,2]
[353092792,1739551839631,-500.0,0.00013698,2]
[353092793,1739551839641,-510.24,0.00013698,2]
[353092794,1739551839651,-501.08047821,0.00013698,2]
[353092795,1739551839660,-500.0,0.00013698,2]
[353092796,1739551839670,-500.0,0.00013698,2]
[353092797,1739551839680,-500.0,0.00013698,2]
[353092798,1739551839689,-500.0,0.00013698,2]
[353092799,1739551839699,-1273.92,0.00013698,2]
[353092800,1739551839709,-500.0,0.00013698,2]
[353092801,1739551839719,-500.0,0.00013698,2]
[353092802,1739551839728,-500.0,0.00013698,2]
[353092803,1739551839739,-500.0,0.00013698,2]
[353092804,1739551839749,-500.0,0.00013698,2]
[353092805,1739551839759,-500.0,0.00013698,2]
[353092806,1739551839768,-288.04560858,0.00013698,2]
[353092807,1739551839777,-500.0,0.00013698,2]
[353092808,1739551839787,-504.1575931,0.00013698,2]
[353092809,1739551839797,-740.61,0.00013698,2]
[353092810,1739551839806,-784.12,0.00013698,2]
[353092811,1739551839816,-3229.13,0.00013698,2]
[353092812,1739551839826,-500.0,0.00013698,2]
[353092813,1739551839835,-3404.51,0.00013698,2]
[353092814,1739551839845,-418.73119519,0.00013698,2]
[353092815,1739551839855,-500.0,0.00013698,2]
[353092816,1739551839865,-500.0,0.00013698,2]
[353092817,1739551839874,-263.27239884,0.00013698,2]
[353092818,1739551839884,-509.85656518,0.00013698,2]
[353092819,1739551839894,-500.0,0.00013698,2]
[353092820,1739551839904,-7059.99,0.00013698,2]
[353092821,1739551839914,-500.0,0.00013698,2]
[353092822,1739551839924,-500.0,0.00013698,2]
[353092823,1739551839935,-500.0,0.00013698,2]
[353092824,1739551839945,-500.0,0.00013698,2]
[353092825,1739551839955,-500.0,0.00013698,2]
[353092826,1739551839965,-1526.24,0.00013698,2]
[353092827,1739551839975,-513.0595766,0.00013698,2]
[353092828,1739551839985,-500.0,0.00013698,2]
[353092829,1739551839995,-500.0,0.00013698,2]
[353092830,1739551840005,-507.09279173,0.00013698,2]
[353092831,1739551840015,-782.62,0.00013698,2]
[353092832,1739551840025,-500.0,0.00013698,2]
[353092833,1739551840036,-500.0,0.00013698,2]
[353092834,1739551840046,-500.0,0.00013698,2]
[353092835,1739551840055,-467.40683247,0.00013698,2]
[353092836,1739551840065,-1464.12,0.00013698,2]
[353092837,1739551840075,-500.0,0.00013698,2]
[353092838,1739551840085,-588.34928311,0.00013698,2]
[353092839,1739551840094,-3436.72,0.00013698,2]
[353092840,1739551840104,-500.0,0.00013698,2]
[353092841,1739551840114,-500.0,0.00013698,2]
[353092842,1739551840123,-500.0,0.00013698,2]
[353092843,1739551840132,-3973.41,0.00013698,2]
[353092844,1739551840142,-500.0,0.00013698,2]
[353092845,1739551840152,-500.0,0.00013698,2]
[353092846,1739551840162,-500.0,0.00013698,2]
[353092847,1739551840171,-500.0,0.00013698,2]
[353092848,1739551840182,-500.0,0.00013698,2]
[353092849,1739551840192,-500.0,0.00013698,2]
[353092850,1739551840201,-500.0,0.00013698,2]
[353092851,1739551840211,-575.87,0.00013698,2]
[353092852,1739551840220,-290.281341,0.00013699,2]
[353092853,1739551840230,-275.949484,0.00013699,2]
[353092854,1739551840241,-215.9231093,0.000137,2]
[353092855,1739551840251,-154.666516,0.000137,2]
[353092856,1739551840261,-215.9231093,0.000137,2]
[353092857,1739551840271,-154.666516,0.000137,2]
[353092858,1739551840281,-154.3867486,0.000137,2]
[353092859,1739551840290,-154.13978181,0.00013739,2]
[353092860,1739551840300,-152.40806877,0.00013779,2]
[353092861,1739551840310,-500.0,0.00013779,2]
[353092862,1739551840321,-607.73098418,0.00013779,2]
[353092863,1739551840330,-162.4041194,0.00013779,2]
[353092864,1739551840340,-500.0,0.00013779,2]
[353092865,1739551840350,-429.78021334,0.00013779,2]
[353092866,1739551840360,-500.0,0.0001378,2]
[353092867,1739551840371,-500.0,0.0001378,2]
[353092868,1739551840381,-500.0,0.0001378,2]
[353092869,1739551840392,-500.0,0.0001378,2]
[353092870,1739551840406,-500.0,0.0001378,2]
[353092871,1739551840416,-500.0,0.0001378,2]
[353092873,1739551840426,-500.0,0.0001378,2]
[353092874,1739551840436,-500.0,0.0001378,2]
[353092875,1739551840447,-500.0,0.0001378,2]
[353092876,1739551840457,-500.0,0.0001378,2]
[353092877,1739551840467,-500.0,0.0001378,2]
[353092879,1739551840476,-500.0,0.0001378,2]
[353092881,1739551840487,-570.61488848,0.0001378,2]
[353092882,1739551840497,-500.0,0.0001378,2]
[353092883,1739551840508,-572.16,0.0001378,2]
[353092884,1739551840518,-592.41,0.0001378,2]
[353092885,1739551840527,-500.0,0.0001378,2]
[353092886,1739551840537,-510.41,0.0001378,2]
[353092887,1739551840547,-500.0,0.0001378,2]
[353092888,1739551840557,-500.0,0.0001378,2]
[353092889,1739551840567,-500.0,0.0001378,2]
[353092890,1739551840576,-500.0,0.0001378,2]
[353092892,1739551840586,-500.0,0.0001378,2]
[353092893,1739551840596,-502.09160468,0.0001378,2]
[353092894,1739551840605,-500.0,0.0001378,2]
[353092895,1739551840616,-500.0,0.0001378,2]
[353092896,1739551840625,-500.0,0.0001378,2]
[353092897,1739551840635,-739.37,0.0001378,2]
[353092898,1739551840646,-755.26,0.0001378,2]
[353092899,1739551840655,-936.22,0.0001378,2]
[353092900,1739551840665,-500.0,0.0001378,2]
[353092901,1739551840675,-500.0,0.0001378,2]
[353092902,1739551840685,-500.0,0.0001378,2]
[353092903,1739551840694,-500.0,0.0001378,2]
[353092904,1739551840704,-500.0,0.0001378,2]
[353092905,1739551840714,-500.0,0.0001378,2]
[353092906,1739551840724,-500.0,0.0001378,2]
[353092907,1739551840734,-671.89,0.0001378,2]
[353092908,1739551840745,-500.0,0.0001378,2]
[353092909,1739551840755,-500.0,0.0001378,2]
[353092910,1739551840765,-500.0,0.0001378,2]
[353092911,1739551840775,-793.92,0.0001378,2]
[353092912,1739551840785,-500.0,0.0001378,2]
[353092913,1739551840795,-1357.7,0.0001378,2]
[353092914,1739551840804,-500.0,0.0001378,2]
[353092915,1739551840815,-500.0,0.0001378,2]
[353092916,1739551840825,-1497.24,0.0001378,2]
[353092917,1739551840835,-1324.38,0.0001378,2]
[353092918,1739551840844,-500.0,0.0001378,2]
[353092919,1739551840854,-500.0,0.0001378,2]
[353092920,1739551840864,-501.56,0.0001378,2]
[353092921,1739551840873,-395.25090178,0.0001378,2]
[353092922,1739551840883,-359.76153062,0.0001378,2]
[353092923,1739551840894,-1501.56,0.0001378,2]
[353092924,1739551840903,-500.0,0.0001378,2]
[353092925,1739551840913,-500.0,0.0001378,2]
[353092927,1739551840923,-500.0,0.0001378,2]
[353092928,1739551840933,-706.33,0.0001378,2]
[353092929,1739551840942,-500.0,0.0001378,2]
[353092931,1739551840952,-500.0,0.0001378,2]
[353092932,1739551840962,-782.24,0.0001378,2]
[353092933,1739551840971,-500.0,0.0001378,2]
[353092934,1739551840981,-500.0,0.0001378,2]
[353092935,1739551840990,-500.0,0.0001378,2]
[353092937,1739551841000,-301.28744575,0.0001378,2]
[353092939,1739551841009,-500.0,0.0001378,2]
[353092941,1739551841019,-1489.8,0.0001378,2]
[353092942,1739551841029,-500.0,0.0001378,2]
[353092943,1739551841039,-500.0,0.0001378,2]
[353092944,1739551841048,-1218.52,0.0001378,2]
[353092945,1739551841057,-500.0,0.0001378,2]
[353092946,1739551841067,-500.0,0.0001378,2]
[353092947,1739551841077,-500.0,0.0001378,2]
[353092948,1739551841087,-500.0,0.0001378,2]
[353092949,1739551841096,-500.0,0.0001378,2]
[353092950,1739551841105,-500.0,0.0001378,2]
[353092951,1739551841115,-500.0,0.0001378,2]
[353092952,1739551841125,-521.91521285,0.0001378,2]
[353092953,1739551841136,-500.0,0.0001378,2]
[353092954,1739551841147,-1168.36,0.0001378,2]
[353092955,1739551841157,-500.0,0.0001378,2]
[353092956,1739551841167,-500.0,0.0001378,2]
[353092957,1739551841176,-500.0,0.0001378,2]
[353092958,1739551841186,-852.43,0.0001378,2]
[353092959,1739551841195,-500.0,0.0001378,2]
[353092960,1739551841204,-2405.26,0.0001378,2]
[353092961,1739551841214,-978.95,0.0001378,2]
[353092962,1739551841223,-764.63,0.0001378,2]
[353092963,1739551841233,-500.0,0.0001378,2]
[353092964,1739551841242,-2987.4,0.0001378,2]
[353092965,1739551841251,-790.6,0.0001378,2]
[353092966,1739551841262,-500.0,0.0001378,2]
[353092967,1739551841271,-501.65443903,0.0001378,2]
[353092968,1739551841281,-6745.5,0.0001378,2]
[353092969,1739551841290,-500.0,0.0001378,2]
[353092970,1739551841300,-500.0,0.0001378,2]
[353092971,1739551841310,-500.0,0.0001378,2]
[353092972,1739551841320,-500.0,0.0001378,2]
[353092973,1739551841330,-500.0,0.0001378,2]
[353092974,1739551841339,-12187.88,0.0001378,2]
[353092975,1739551841349,-500.0,0.0001378,2]
[353092976,1739551841359,-500.0,0.0001378,2]
[353092977,1739551841370,-500.0,0.0001378,2]
[353092978,1739551841380,-1960.73,0.0001378,2]
[353092979,1739551841390,-500.0,0.0001378,2]
[353092980,1739551841404,-500.0,0.0001378,2]
[353092981,1739551841413,-500.0,0.0001378,2]
[353092982,1739551841424,-500.0,0.0001378,2]
[353092983,1739551841433,-500.0,0.0001378,2]
[353092984,1739551841446,-1668.29,0.0001378,2]
[353092985,1739551841456,-500.0,0.0001378,2]
[353092986,1739551841466,-500.0,0.0001378,2]
[353092987,1739551841476,-500.0,0.0001378,2]
[353092988,1739551841487,-1019.51,0.0001378,2]
[353092989,1739551841497,-500.0,0.0001378,2]
[353092990,1739551841508,-1182.97,0.0001378,2]
[353092991,1739551841518,-696.29,0.0001378,2]
[353092992,1739551841528,-1166.08,0.0001378,2]
[353092993,1739551841537,-500.0,0.0001378,2]
[353092994,1739551841547,-3218.57,0.0001378,2]
[353092995,1739551841558,-40107.79,0.0001378,2]
[353092996,1739551841568,-1764.67,0.0001378,2]
[353092997,1739551841579,-500.0,0.0001378,2]
[353092998,1739551841588,-500.0,0.0001378,2]
[353092999,1739551841599,-500.0,0.0001378,2]
[353093000,1739551841608,-500.0,0.0001378,2]
[353093001,1739551841618,-500.0,0.0001378,2]
[353093002,1739551841628,-500.0,0.0001378,2]
[353093003,1739551841637,-500.0,0.0001378,2]
[353093004,1739551841647,-500.0,0.0001378,2]
[353093005,1739551841657,-1936.83,0.0001378,2]
[353093006,1739551841667,-500.0,0.0001378,2]
[353093007,1739551841678,-4832.38,0.0001378,2]
[353093008,1739551841688,-16891.67,0.0001378,2]
[353093009,1739551841697,-500.0,0.0001378,2]
[353093010,1739551841708,-500.0,0.0001378,2]
[353093011,1739551841718,-500.0,0.0001378,2]
[353093012,1739551841728,-500.0,0.0001378,2]
[353093013,1739551841738,-926.73,0.0001378,2]
[353093014,1739551841749,-1229.64,0.0001378,2]
[353093015,1739551841759,-1207.57,0.0001378,2]
[353093016,1739551841770,-500.0,0.0001378,2]
[353093017,1739551841887,-257.37554615,0.0001378,2]
[353093018,1739551841897,-500.0,0.0001378,2]
[353093019,1739551841908,-1836.26,0.0001378,2]
[353093020,1739551841920,-1859.36,0.0001378,2]
[353093021,1739551841930,-500.0,0.0001378,2]
[353093022,1739551841940,-500.0,0.0001378,2]
[353093023,1739551841949,-500.0,0.0001378,2]
[353093024,1739551841960,-500.0,0.0001378,2]
[353093025,1739551841970,-500.0,0.0001378,2]
[353093026,1739551841980,-500.0,0.0001378,2]
[353093027,1739551841990,-500.0,0.0001378,2]
[353093028,1739551842000,-500.0,0.0001378,2]
[353093029,1739551842010,-500.0,0.0001378,2]
[353093030,1739551842020,-500.0,0.0001378,2]
[353093031,1739551842030,-557.75,0.0001378,2]
[353093032,1739551842039,-500.0,0.0001378,2]
[353093033,1739551842049,-500.0,0.0001378,2]
[353093034,1739551842060,-500.0,0.0001378,2]
[353093035,1739551842070,-500.0,0.0001378,2]
[353093036,1739551842081,-500.0,0.0001378,2]
[353093037,1739551842091,-500.0,0.0001378,2]
[353093038,1739551842102,-500.0,0.0001378,2]
[353093039,1739551842112,-510.24,0.0001378,2]
[353093040,1739551842123,-500.0,0.0001378,2]
[353093041,1739551842132,-500.0,0.0001378,2]
[353093042,1739551842144,-500.0,0.0001378,2]
[353093043,1739551842155,-500.0,0.0001378,2]
[353093044,1739551842165,-1273.92,0.0001378,2]
[353093045,1739551842174,-529.52977285,0.0001378,2]
[353093046,1739551842183,-500.0,0.0001378,2]
[353093047,1739551842193,-517.54206974,0.0001378,2]
[353093048,1739551842205,-500.0,0.0001378,2]
[353093049,1739551842216,-740.61,0.0001378,2]
[353093050,1739551842226,-784.12,0.0001378,2]
[353093051,1739551842236,-3229.13,0.0001378,2]
[353093052,1739551842246,-500.0,0.0001378,2]
[353093053,1739551842255,-3404.51,0.0001378,2]
[353093054,1739551842265,-503.95681208,0.0001378,2]
[353093055,1739551842274,-500.0,0.0001378,2]
[353093056,1739551842284,-7059.99,0.0001378,2]
[353093057,1739551842293,-500.0,0.0001378,2]
[353093058,1739551842303,-500.0,0.0001378,2]
[353093059,1739551842312,-500.0,0.0001378,2]
[353093060,1739551842322,-1526.24,0.0001378,2]
[353093061,1739551842332,-500.0,0.0001378,2]
[353093062,1739551842342,-500.0,0.0001378,2]
[353093063,1739551842353,-782.62,0.0001378,2]
[353093064,1739551842362,-500.0,0.0001378,2]
[353093065,1739551842373,-161.01362864,0.0001378,2]
[353093066,1739551842384,-500.0,0.0001378,2]
[353093067,1739551842395,-1464.12,0.0001378,2]
[353093068,1739551842409,-500.0,0.0001378,2]
[353093069,1739551842419,-3436.72,0.0001378,2]
[353093070,1739551842429,-500.0,0.0001378,2]
[353093071,1739551842442,-500.0,0.0001378,2]
[353093072,1739551842452,-500.0,0.0001378,2]
[353093073,1739551842462,-3973.41,0.0001378,2]
[353093074,1739551842472,-500.0,0.0001378,2]
[353093075,1739551842482,-500.0,0.0001378,2]
[353093076,1739551842493,-500.0,0.0001378,2]
[353093077,1739551842503,-500.0,0.0001378,2]
[353093078,1739551842512,-500.0,0.0001378,2]
[353093079,1739551842522,-500.0,0.0001378,2]
[353093080,1739551842532,-575.87,0.0001378,2]
[353093081,1739551842542,-154.666516,0.000138,2]
[353093082,1739551842551,-215.9231093,0.000138,2]
[353093083,1739551842561,-154.666516,0.000138,2]
[353093084,1739551842570,-151.0,0.00013863,2]
[353093085,1739551842580,-500.0,0.00013863,2]
[353093086,1739551842589,-500.0,0.00013863,2]
[353093087,1739551842599,-500.0,0.00013863,2]
[353093088,1739551842608,-234.02,0.00013863,2]
[353093089,1739551842619,-500.0,0.00013863,2]
[353093090,1739551842629,-623.04528776,0.00013863,2]
[353093091,1739551842639,-500.0,0.00013863,2]
[353093092,1739551842649,-500.0,0.00013863,2]
[353093093,1739551842659,-500.0,0.00013863,2]
[353093094,1739551842669,-500.0,0.00013863,2]
[353093095,1739551842679,-592.41,0.00013863,2]
[353093096,1739551842690,-500.0,0.00013863,2]
[353093097,1739551842700,-510.41,0.00013863,2]
[353093098,1739551842711,-500.0,0.00013863,2]
[353093099,1739551842721,-500.0,0.00013863,2]
[353093100,1739551842731,-158.91368951,0.00013863,2]
[353093101,1739551842741,-500.0,0.00013863,2]
[353093102,1739551842751,-500.0,0.00013863,2]
[353093103,1739551842761,-443.14731916,0.00013863,2]
[353093104,1739551842771,-500.0,0.00013863,2]
[353093105,1739551842781,-739.37,0.00013863,2]
[353093106,1739551842791,-755.26,0.00013863,2]
[353093107,1739551842801,-936.22,0.00013863,2]
[353093108,1739551842813,-500.0,0.00013863,2]
[353093109,1739551842826,-500.0,0.00013863,2]
[353093110,1739551842835,-179.93861544,0.00013863,2]
[353093111,1739551842843,-500.0,0.00013863,2]
[353093112,1739551842853,-500.0,0.00013863,2]
[353093113,1739551842862,-500.0,0.00013863,2]
[353093114,1739551842872,-671.89,0.00013863,2]
[353093115,1739551842882,-500.0,0.00013863,2]
[353093116,1739551842892,-500.0,0.00013863,2]
[353093117,1739551842901,-793.92,0.00013863,2]
[353093118,1739551842911,-1357.7,0.00013863,2]
[353093119,1739551842920,-500.0,0.00013863,2]
[353093120,1739551842930,-1497.24,0.00013863,2]
[353093121,1739551842939,-1324.38,0.00013863,2]
[353093122,1739551842949,-500.0,0.00013863,2]
[353093123,1739551842959,-501.56,0.00013863,2]
[353093124,1739551842968,-1501.56,0.00013863,2]
[353093125,1739551842977,-500.0,0.00013863,2]
[353093126,1739551842987,-500.0,0.00013863,2]
[353093127,1739551842997,-500.0,0.00013863,2]
[353093128,1739551843006,-706.33,0.00013863,2]
[353093129,1739551843016,-500.0,0.00013863,2]
[353093130,1739551843025,-500.0,0.00013863,2]
[353093131,1739551843035,-782.24,0.00013863,2]
[353093132,1739551843044,-500.0,0.00013863,2]
[353093133,1739551843053,-500.0,0.00013863,2]
[353093134,1739551843062,-500.0,0.00013863,2]
[353093136,1739551843071,-1489.8,0.00013863,2]
[353093137,1739551843080,-500.0,0.00013863,2]
[353093138,1739551843090,-373.94114857,0.00013863,2]
[353093139,1739551843099,-1218.52,0.00013863,2]
[353093140,1739551843109,-500.0,0.00013863,2]
[353093142,1739551843119,-500.0,0.00013863,2]
[353093143,1739551843128,-500.0,0.00013863,2]
[353093144,1739551843138,-500.0,0.00013863,2]
[353093145,1739551843147,-497.54221204,0.00013863,2]
[353093152,1739551843250,-500.0,0.00013698,2]
[353093154,1739551843260,-2.45778796,0.00013863,2]
[353093155,1739551843270,-500.0,0.00013863,2]
[353093156,1739551843279,-500.0,0.00013863,2]
[353093157,1739551843288,-497.56627604,0.00013863,2]
[353093158,1739551843308,-670.79372396,0.00013863,2]
[353093160,1739551843317,-500.0,0.00013863,2]
[353093161,1739551843326,-500.0,0.00013863,2]
[353093162,1739551843336,-500.0,0.00013863,2]
[353093163,1739551843346,-852.43,0.00013863,2]
[353093164,1739551843355,-2405.26,0.00013863,2]
[353093166,1739551843365,-978.95,0.00013863,2]
[353093168,1739551843375,-764.63,0.00013863,2]
[353093170,1739551843383,-500.0,0.00013863,2]
[353093171,1739551843396,-2987.4,0.00013863,2]
[353093173,1739551843406,-790.6,0.00013863,2]
[353093174,1739551843415,-500.0,0.00013863,2]
[353093175,1739551843425,-6745.5,0.00013863,2]
[353093177,1739551843435,-500.0,0.00013863,2]
[353093178,1739551843446,-500.0,0.00013863,2]
[353093179,1739551843456,-500.0,0.00013863,2]
[353093180,1739551843466,-500.0,0.00013863,2]
[353093181,1739551843476,-12187.88,0.00013863,2]
[353093182,1739551843487,-500.0,0.00013863,2]
[353093183,1739551843496,-1960.73,0.00013863,2]
[353093184,1739551843506,-500.0,0.00013863,2]
[353093185,1739551843515,-500.0,0.00013863,2]
[353093186,1739551843525,-500.0,0.00013863,2]
[353093187,1739551843534,-1668.29,0.00013863,2]
[353093189,1739551843544,-500.39284187,0.00013863,2]
[353093190,1739551843554,-500.0,0.00013863,2]
[353093191,1739551843563,-500.0,0.00013863,2]
[353093192,1739551843573,-500.0,0.00013863,2]
[353093193,1739551843583,-1019.51,0.00013863,2]
[353093194,1739551843593,-500.0,0.00013863,2]
[353093195,1739551843603,-1182.97,0.00013863,2]
[353093196,1739551843612,-696.29,0.00013863,2]
[353093197,1739551843624,-1166.08,0.00013863,2]
[353093198,1739551843635,-326.75827312,0.00013863,2]
[353093199,1739551843644,-3218.57,0.00013863,2]
[353093200,1739551843653,-2078.03078096,0.00013863,2]
[353093201,1739551844082,-9672.09999999,0.00013863,2]
[353093205,1739551846834,-2104.6,0.00013698,2]
[353093206,1739551846845,-10664.39,0.00013698,2]
[353093207,1739551846855,-2104.6,0.0001378,2]
[353093208,1739551846866,-10664.39,0.0001378,2]
[353093209,1739551846880,-27662.48718193,0.00013863,2]
[353093228,1739552147494,1000.0,0.00018,30]
[353093229,1739552157167,1000.0,0.00018,35]
[353093231,1739552168535,1000.0,0.00019,120]
[353093239,1739552177811,1000.0,0.00018,40]
[353093241,1739552202263,1000.0,0.00018,45]
[353093265,1739553031904,-315.25440493,0.0001068,2]
[353093268,1739553031921,-1363.860003,0.0001068,2]
[353093272,1739553031962,-5937.88559207,0.0001068,2]
[353093275,1739553031978,-158.940585,0.00010685,2]
[353093277,1739553031994,-456.72,0.00010959,2]
[353093280,1739553032009,-700.0,0.00013068,2]
[353093282,1739553032020,-300.0,0.00013241,2]
[353093284,1739553032031,-7438.69753278,0.00013242,2]
[353093286,1739553032043,-166.98476363,0.00013598,2]
[353093288,1739553032057,-154.666516,0.000136,2]
[353093289,1739553032070,-8399.30480696,0.00013648,2]
[353093290,1739553032086,-815.37549279,0.00013697,5]
[353093291,1739553032100,-518.24860747,0.00013698,2]
[353093292,1739553032110,-500.0,0.00013698,2]
[353093293,1739553032124,-500.70528006,0.00013698,2]
[353093294,1739553032138,-178.7874689,0.00013698,2]
[353093295,1739553032151,-500.0,0.00013698,2]
[353093296,1739553032165,-500.0,0.00013698,2]
[353093297,1739553032176,-500.0,0.00013698,2]
[353093298,1739553032188,-500.0,0.00013698,2]
[353093299,1739553032201,-646.95,0.00013698,2]
[353093300,1739553032214,-500.0,0.00013698,2]
[353093301,1739553032226,-500.0,0.00013698,2]
[353093302,1739553032238,-500.0,0.00013698,2]
[353093303,1739553032250,-500.0,0.00013698,2]
[353093304,1739553032264,-500.0,0.00013698,2]
[353093305,1739553032277,-500.0,0.00013698,2]
[353093306,1739553032289,-551.24665482,0.00013698,2]
[353093307,1739553032302,-511.79970277,0.00013698,2]
[353093308,1739553032325,-500.0,0.00013698,2]
[353093309,1739553032347,-500.0,0.00013698,2]
[353093310,1739553032366,-389.55432037,0.00013698,2]
[353093311,1739553032384,-840.03,0.00013698,2]
[353093312,1739553032400,-681.68,0.00013698,2]
[353093313,1739553032416,-500.0,0.00013698,2]
[353093314,1739553032431,-500.0,0.00013698,2]
[353093315,1739553032446,-500.0,0.00013698,2]
[353093316,1739553032462,-500.0,0.00013698,2]
[353093317,1739553032476,-500.0,0.00013698,2]
[353093318,1739553032490,-715.52,0.00013698,2]
[353093319,1739553032505,-608.73,0.00013698,2]
[353093320,1739553032519,-500.0,0.00013698,2]
[353093321,1739553032533,-500.0,0.00013698,2]
[353093322,1739553032547,-500.0,0.00013698,2]
[353093323,1739553032561,-500.0,0.00013698,2]
[353093324,1739553032573,-500.0,0.00013698,2]
[353093325,1739553032587,-500.0,0.00013698,2]
[353093326,1739553032600,-500.0,0.00013698,2]
[353093327,1739553032613,-500.0,0.00013698,2]
[353093328,1739553032625,-1250.48,0.00013698,2]
[353093329,1739553032639,-1200.49,0.00013698,2]
[353093330,1739553032652,-500.0,0.00013698,2]
[353093331,1739553032666,-1357.66,0.00013698,2]
[353093332,1739553032681,-613.99,0.00013698,2]
[353093333,1739553032694,-500.0,0.00013698,2]
[353093334,1739553032707,-500.0,0.00013698,2]
[353093335,1739553032720,-500.0,0.00013698,2]
[353093336,1739553032733,-500.0,0.00013698,2]
[353093337,1739553032745,-500.0,0.00013698,2]
[353093338,1739553032758,-500.0,0.00013698,2]
[353093339,1739553032772,-500.0,0.00013698,2]
[353093340,1739553032787,-541.53868586,0.00013698,2]
[353093341,1739553032802,-500.0,0.00013698,2]
[353093342,1739553032814,-500.0,0.00013698,2]
[353093343,1739553032828,-500.0,0.00013698,2]
[353093344,1739553032842,-500.0,0.00013698,2]
[353093345,1739553032855,-705.3,0.00013698,2]
[353093346,1739553032869,-500.0,0.00013698,2]
[353093347,1739553032883,-500.0,0.00013698,2]
[353093348,1739553032896,-500.0,0.00013698,2]
[353093349,1739553032909,-500.0,0.00013698,2]
[353093350,1739553032922,-496.7,0.00013698,2]
[353093351,1739553032935,-500.0,0.00013698,2]
[353093352,1739553032946,-500.0,0.00013698,2]
[353093353,1739553032956,-1366.07,0.00013698,2]
[353093354,1739553032966,-500.0,0.00013698,2]
[353093355,1739553032976,-500.0,0.00013698,2]
[353093356,1739553032986,-1103.8,0.00013698,2]
[353093357,1739553032997,-500.0,0.00013698,2]
[353093358,1739553033007,-500.0,0.00013698,2]
[353093359,1739553033242,-500.0,0.00013698,2]
[353093360,1739553033268,-500.0,0.00013698,2]
[353093361,1739553033278,-500.0,0.00013698,2]
[353093362,1739553033289,-618.04,0.00013698,2]
[353093363,1739553033299,-500.0,0.00013698,2]
[353093364,1739553033309,-502.27895175,0.00013698,2]
[353093365,1739553033319,-392.32299539,0.00013698,2]
[353093366,1739553033329,-766.71,0.00013698,2]
[353093367,1739553033339,-500.0,0.00013698,2]
[353093368,1739553033349,-500.0,0.00013698,2]
[353093369,1739553033359,-689.89,0.00013698,2]